Cogmind - Beta 11 X6 @@@ ROGUE MODE // 2021.08.01 @ 11:21:54 Player: No Aegis no Win Result: Self-destructed Performance ------------- Evolutions (9) 4500 Regions Visited (31) 6200 Robots Destroyed (341) 1705 Value Destroyed (17564) 17564 Prototype IDs (91) 1820 Alien Tech Used (12) 2400 Bonus (19422) 19422 TOTAL SCORE: 53611 Bonus ------- High Alert Combat Kills 2542 Follower Combat Kills 1805 Network Hubs Disabled 400 Met Data Miner 300 Met Zhirov 300 Built Enhanced Grunts 300 A7 Reached Mainframe 300 Used Core Reset Matrix 3000 Met R17 at Research 2000 Destroyed MAIN.C Guards 500 Met MAIN.C 5000 Destroyed MAIN.C Shell 5000 Friendly Fire -2025 Cogmind --------- Core Integrity 42/1600 Matter 300/300 Energy 278/325 System Corruption 20% Temperature Cool (0) Movement Core (100) Ox1 Location -1/Command Parts ------- > --- POWER (2) -------- Reinforced Antimatter Reactor > --- PROPULSION (6) --- (None) > --- UTILITY (12) ----- (None) > --- WEAPON (5) ------- (None) > --- INVENTORY (5) ---- High-powered Transdimensional Reconstructor Peak State ------------ > --- POWER ------------ Improved Quantum Reactor > --- PROPULSION ------- Centrium Heavy Treads Enhanced Armored Heavy Treads Enhanced Armored Heavy Treads > --- UTILITY ---------- Large Storage Unit Advanced Energy Well Advanced Signal Interpreter Hacking Suite Advanced System Shield Advanced Dynamic Insulation System Matter Drive Core Physics Calibrator Spacefold Activator Microwarp Drive > --- WEAPON ----------- Sigix Broadsword Sigix Broadsword > --- INVENTORY -------- 2N-1CE's Frost Array Advanced Hacking Suite Transdimensional Reconstructor Transdimensional Reconstructor Transdimensional Reconstructor High-powered Transdimensional Reconstructor Core Regenerator Integrated Dissipator Core Reset Matrix Gamma Rifle Warp Gun Improved KE Penetrator Enhanced Force Lance Enhanced Force Lance [Rating: 254] Favorites ----------- Power F-cell Engine Engine F-cell Engine Power Core Light Nuclear Core Reactor Improved Quantum Reactor Propulsion Enhanced Armored Heavy Treads Treads Enhanced Armored Heavy Treads Leg Improved Carbon-fiber Leg Wheel Compact Wheel Hover Unit Aerolev Unit Flight Unit Nuclear Pulse Thruster Utility Hacking Suite Device Advanced Heat Sink Storage Large Storage Unit Processor Advanced Signal Interpreter Hackware Hacking Suite Protection Centrium Medium Armor Plating Artifact Spacefold Activator Weapon Sigix Broadsword Energy Gun Advanced Beam Rifle Energy Cannon Nova Cannon Ballistic Gun Heavy Battle Rifle Ballistic Cannon Heavy Mass Driver Launcher Missile Launcher Special Weapon Improved Plasma Cutter Impact Weapon Heavy Hammer Slashing Weapon Sigix Broadsword Piercing Weapon Enhanced Force Lance Special Melee Weapon Dirty Datajack Build | -11 -10 -10 -9 -9 -8 -8 -8 -6 -6 -6 -6 -5 -5 -5 -5 -5 -4 -4 -4 -4 -4 -4 -4 -4 -3 -3 -2 -2 -2 -1 -1 ------- Run | Scr Mat Min Mat Min Mat Sto Rec Fac Low Low Dat Pro Fac Upp Upp Zhi Pro Fac Was Fac Ext Cet Arc Hub Res Qua Res Tes Sec Acc Com Slots Evolved 18 | . . . 2 . 2 . . 4 . . . . 2 . . . . 2 . . . . . . 2 . 2 . . 2 . Power 1 | . . . . . . . . . . . . . . . . . . . . . . . . . . . . . . 1 . Propulsion 4 | . . . . . . . . . . . . . . . . . . . . . . . . . 2 . 2 . . . . Utility 10 | . . . . . 2 . . 4 . . . . 2 . . . . 2 . . . . . . . . . . . . . Weapon 3 | . . . 2 . . . . . . . . . . . . . . . . . . . . . . . . . . 1 . Parts Attached 618 | 7 14 15 18 1 2 52 1 4 16 4 . 16 41 4 1 5 2 13 20 6 44 13 18 10 26 12 5 48 24 73 103 Power 51 | 1 . 1 . . . 4 . . 3 . . . 4 . . 2 . 1 3 . 3 1 . 2 2 3 . 2 . 10 9 Engine 13 | 1 . . . . . 1 . . 2 . . . 4 . . 1 . 1 2 . 1 . . . . . . . . . . Core 11 | . . 1 . . . 3 . . 1 . . . . . . . . . . . 1 . . 2 2 1 . . . . . Reactor 27 | . . . . . . . . . . . . . . . . 1 . . 1 . 1 1 . . . 2 . 2 . 10 9 Propulsion 90 | 2 . 2 7 . . 15 . . 2 . . 3 8 1 . . . . 2 1 5 1 . 1 3 2 1 8 3 8 15 Treads 71 | 2 . 2 7 . . 11 . . . . . 1 . . . . . . 2 1 5 1 . 1 1 2 1 8 3 8 15 Leg 4 | . . . . . . . . . . . . 1 3 . . . . . . . . . . . . . . . . . . Wheel 13 | . . . . . . 3 . . 2 . . . 5 1 . . . . . . . . . . 2 . . . . . . Hover 1 | . . . . . . 1 . . . . . . . . . . . . . . . . . . . . . . . . . Flight 1 | . . . . . . . . . . . . 1 . . . . . . . . . . . . . . . . . . . Utility 262 | 2 2 4 4 . 2 9 1 4 6 . . 2 17 2 1 3 . 9 9 3 26 6 17 6 13 5 2 17 11 30 49 Device 138 | 1 1 4 . . . 3 1 1 3 . . . 13 1 1 2 . 5 2 2 18 2 6 2 9 2 2 8 4 17 28 Storage 25 | . 1 . . . . . . . . . . . 2 . . . . 2 . . 1 . 1 1 1 2 . 2 1 2 9 Processor 22 | 1 . . . . . . . 1 1 . . 1 2 1 . . . 1 . . 3 . . . . . . 1 1 2 7 Hackware 24 | . . . 1 . . 2 . . 2 . . . . . . . . 1 . . 2 . 5 . 1 . . 4 1 4 1 Protection 47 | . . . 3 . 2 4 . 2 . . . 1 . . . 1 . . 7 1 2 4 5 3 2 1 . 2 . 4 3 Artifact 6 | . . . . . . . . . . . . . . . . . . . . . . . . . . . . . 4 1 1 Weapon 215 | 2 12 8 7 1 . 24 . . 5 4 . 11 12 1 . . 2 3 6 2 10 5 1 1 8 2 2 21 10 25 30 Energy Gun 44 | . . . . . . 17 . . 3 3 . 4 2 1 . . 1 . . . 2 1 . . . . . . . 6 4 Energy Cannon 26 | . . . . . . 1 . . . . . . 5 . . . . 2 2 . 2 . . . . . . . . 10 4 Ballistic Gun 68 | 2 6 6 7 1 . 4 . . . . . 2 3 . . . 1 . 4 1 5 4 1 . 3 1 . 8 3 . 6 Ballistic Cannon 21 | . . . . . . . . . . . . . 1 . . . . 1 . 1 1 . . 1 3 . . 4 . . 9 Launcher 6 | . . . . . . 1 . . 1 . . 3 . . . . . . . . . . . . . . . . . . 1 Special Weapon 10 | . 6 2 . . . . . . . . . . . . . . . . . . . . . . 2 . . . . . . Impact Weapon 1 | . . . . . . 1 . . . . . . . . . . . . . . . . . . . . . . . . . Slashing Weapon 32 | . . . . . . . . . . . . . . . . . . . . . . . . . . 1 2 9 5 9 6 Piercing Weapon 2 | . . . . . . . . . . . . . . . . . . . . . . . . . . . . . 2 . . Special Melee Weapon 5 | . . . . . . . . . 1 1 . 2 1 . . . . . . . . . . . . . . . . . . Unidentified Prototypes 44 | . . . . . . 9 . . 1 . . . 3 . . 3 . 1 1 . . 3 1 . 3 2 . 4 . 2 11 Corrupted Parts 11 | . . . . . . . . . . . . . . . . . . 1 . . . 1 . 1 . . . . . . 8 System Corruption 59 | . . . . . . . . . . . . . . . . . . 2 . . . 1 . 13 . . . . . . 43 Parts Lost 110 | . . . . . . . . . 5 . . 13 . . . . . 7 . . 17 3 . 5 . 1 . 4 5 10 40 Power 11 | . . . . . . . . . 2 . . 1 . . . . . 1 . . 2 1 . 2 . . . . . 1 1 Propulsion 14 | . . . . . . . . . 1 . . 2 . . . . . . . . 1 . . . . . . . . 1 9 Utility 58 | . . . . . . . . . 1 . . 3 . . . . . 4 . . 9 2 . 3 . 1 . 4 5 7 19 Weapon 27 | . . . . . . . . . 1 . . 7 . . . . . 2 . . 5 . . . . . . . . 1 11 Highest Loss Streak 27 | . . . . . . . . . 2 . . 11 . . . . . 3 . . 4 2 . 3 . 1 . 2 2 2 27 Average Slot Usage (%) 85 | . 100 92 100 100 88 99 100 74 94 100 100 84 89 93 93 93 94 83 78 82 82 92 89 89 86 89 77 76 70 78 76 Engine 2 | . 14 6 . . . . . . 3 6 6 4 2 5 5 5 5 4 5 5 2 . . . . . . . . . . Core 1 | . . . 11 11 9 8 9 6 . . . . . . . . . . . . 1 . . 4 3 2 . . . . . Reactor 2 | . . . . . . . . . . . . . . . . . . . . . . 4 5 . . 1 4 4 4 6 7 Treads 9 | . 28 27 22 22 18 14 . . . . . 1 . . . . . . 1 5 5 5 5 5 6 4 8 12 12 11 12 Wheel 3 | . . . . . . 2 18 13 12 13 13 7 3 11 11 11 11 10 6 . . . . . 3 9 8 1 . . . Device 13 | . 14 14 . . . 8 9 6 14 20 20 14 23 28 28 23 23 18 13 10 16 21 4 6 13 20 20 11 5 10 12 Storage 7 | . 12 14 11 11 9 9 9 6 6 6 6 4 1 5 5 5 5 7 8 5 7 10 7 4 3 6 4 7 6 6 7 Processor 7 | . 1 . . . . . . 1 6 13 13 16 21 11 11 11 11 8 8 5 8 15 15 15 11 4 4 4 5 7 9 Hackware 11 | . . . 4 . . 11 18 13 10 13 13 10 5 5 5 5 5 9 10 10 11 . 14 23 17 18 13 18 17 12 10 Protection 5 | . . . 6 11 16 6 . . 11 . . . . . . 3 5 4 6 19 6 13 13 8 8 3 4 4 . 3 2 Energy Gun 5 | . . . . . . 23 36 26 24 25 26 14 . 11 11 11 5 1 . . 1 5 1 . . . . . . 1 1 Energy Cannon 1 | . . . . . . . . . . . . . 4 . . . . 2 6 . 2 . . . . . . . . 10 3 Ballistic Gun 9 | . 25 27 44 44 36 11 . . . . . 2 7 11 11 11 16 11 6 20 14 14 19 14 7 5 . . . . . Ballistic Cannon 1 | . . . . . . . . . . . . . 1 . . . . 1 3 . 1 . . 2 5 5 . . . . 3 Slashing Weapon 2 | . . . . . . . . . . . . . . . . . . . . . . . . . . 2 7 7 7 4 5 Naked Turns 7 | . . . . . . . . . . . . . . . . . . . . . . . . . . . . . . . 7 Heaviest Build 146 | 8 28 28 39 39 44 44 39 44 53 56 53 53 67 59 59 59 59 70 109 70 76 78 87 69 75 85 85 89 82 119 146 Greatest Support 270 | 40 40 40 46 46 46 46 32 32 44 38 38 38 36 26 26 26 26 26 70 70 75 80 80 80 160 80 32 220 250 250 270 Greatest Overweight (x) 4 | 1 . . . . . 3 1 1 4 1 1 1 3 2 2 2 2 2 2 . 1 . 1 . 2 2 2 2 . . 3 Average Overweight (x) . | . . . . . . . 1 1 1 1 1 . . 2 2 2 1 1 . . . . . . . 1 2 . . . . Largest Inventory Capacity 15 | 5 15 15 15 15 15 15 15 15 15 15 15 15 10 10 10 10 10 10 10 10 10 10 10 10 5 15 15 15 15 15 15 Average Capacity 12 | 5 13 15 15 15 15 15 15 15 15 15 15 12 6 10 10 10 10 10 10 10 10 10 10 8 5 13 15 15 15 15 14 Most Carried 15 | 5 8 15 15 15 14 15 15 15 15 15 15 15 10 10 10 10 10 10 10 10 10 10 10 10 5 15 15 15 15 15 15 Average Carried 11 | 1 6 13 14 14 13 14 15 14 13 14 15 11 5 9 9 9 9 9 9 9 8 8 9 7 3 10 14 13 14 14 13 Final Capacity 15 | 5 15 15 15 15 15 15 15 15 15 15 15 5 10 10 10 10 10 10 10 10 10 10 10 5 5 15 15 15 15 15 5 Final Carried 15 | 5 8 15 15 14 12 15 15 11 15 15 15 4 10 10 10 10 10 10 10 9 9 9 10 5 5 15 14 13 14 13 1 Class Distribution -------------------- 13% | Scavenger-Tank 12% | Scavenger-Skirmisher 9% | Alien-Mutant 8% | Mutant 8% | Hacker-Gunner 7% | Tank 6% | Hacker-Mutant 5% | Wizard-Mutant 5% | Scavenger-Gunner 4% | Alien-Tank 4% | Hacker-Tank 3% | Scavenger-Mutant 3% | Hacker-Skirmisher Dominant Class ---------------- Mutant | -10/Materials Mutant | -10/Mines Tank | -9/Materials Tank | -9/Mines Tank | -8/Materials Tank | -8/Storage Hacker-Gunner | -8/Recycling Hacker-Gunner | -6/Factory Hacker-Tank | -6/Lower Caves Hacker-Gunner | -6/Lower Caves Hacker-Gunner | -6/Data Miner Hacker-Gunner | -5/Proximity Caves Scavenger-Assassin | -5/Factory Scavenger-Skirmisher | -5/Upper Caves Scavenger-Gunner | -5/Upper Caves Scavenger-Tank | -5/Zhirov Scavenger-Tank | -4/Proximity Caves Scavenger-Tank | -4/Factory Scavenger-Skirmisher | -4/Waste Scavenger-Tank | -4/Factory Scavenger-Skirmisher | -4/Extension Scavenger-Tank | -4/Cetus Scavenger-Tank | -4/Archives Scavenger-Tank | -4/Hub_04(d) Scavenger-Tank | -3/Research Hacker-Mutant | -3/Quarantine Hacker-Mutant | -2/Research Hacker-Mutant | -2/Testing Alien-Mutant | -2/Section 7 Alien-Tank | -1/Access Alien-Mutant | -1/Command Resources | -11 -10 -10 -9 -9 -8 -8 -8 -6 -6 -6 -6 -5 -5 -5 -5 -5 -4 -4 -4 -4 -4 -4 -4 -4 -3 -3 -2 -2 -2 -1 -1 ----------- Run | Scr Mat Min Mat Min Mat Sto Rec Fac Low Low Dat Pro Fac Upp Upp Zhi Pro Fac Was Fac Ext Cet Arc Hub Res Qua Res Tes Sec Acc Com Matter Collected 12867 | 300 68 384 607 31 . 836 10 . 263 . . 47 725 72 10 . 168 243 338 53 1310 411 465 434 568 49 67 1003 454 785 3166 Remotely 514 | . . 181 . . . . . . . . . . . . . . . . . . . . . . . . . . . . 333 Salvage Created 20715 | 146 98 234 876 31 . 1505 69 . 739 . . 147 851 208 . . 300 254 124 . 1381 757 456 671 941 35 60 2515 828 3689 3800 Parts 914 | 7 12 10 47 6 . 85 3 . 16 . . 12 34 5 . . 13 13 3 . 37 27 32 32 26 1 10 132 56 171 124 Haulers Intercepted 15 | . . . 2 . . 5 . . . . . . 1 . . . . . . . 1 . . . 4 . . 2 . . . Recyclers Shooed 12 | . . . 1 1 . . . . . . . . 2 . . . . 2 . . 2 . . . . . . . . 2 2 Parts Field Recycled . | . . . . . . . . . . . . . . . . . . . . . . . . . . . . . . . . Retrieved Matter . | . . . . . . . . . . . . . . . . . . . . . . . . . . . . . . . . Parts Self-Destructed 66 | . . . . . . . . . 12 . . 10 . 7 7 . 30 . . . . . . . . . . . . . . Prevented 3 | . . . . . . . . . . . . . . . . . 3 . . . . . . . . . . . . . . Kills | -11 -10 -10 -9 -9 -8 -8 -8 -6 -6 -6 -6 -5 -5 -5 -5 -5 -4 -4 -4 -4 -4 -4 -4 -4 -3 -3 -2 -2 -2 -1 -1 ------- Run | Scr Mat Min Mat Min Mat Sto Rec Fac Low Low Dat Pro Fac Upp Upp Zhi Pro Fac Was Fac Ext Cet Arc Hub Res Qua Res Tes Sec Acc Com Combat Hostiles Destroyed 240 | . 2 6 13 2 . 20 . . 8 . . 6 3 3 . . 5 3 . . 14 11 2 15 1 1 1 29 13 51 31 Melee 57 | . . . . . . . . . . . . . . . . . . . . . . . . . . . 1 21 13 9 13 Guns 107 | . 2 6 13 2 . 20 . . 6 . . 2 2 3 . . 5 3 . . 7 11 2 15 . . . 6 . 2 . Cannons 61 | . . . . . . . . . . . . . . . . . . . . . 7 . . . 1 1 . 2 . 36 14 AOE 7 | . . . . . . . . . 2 . . 4 1 . . . . . . . . . . . . . . . . . . Classes Destroyed 20 | 2 3 2 3 . . 1 . . 4 . . 1 . . . . . 1 1 . . 1 . . . . . 1 . . . Worker 21 | . . 1 1 1 . 7 . . . . . . 2 . . . . . . . 1 . . . 1 . . 3 . . 4 Builder 11 | . 1 . . . . 1 . . . . . . 4 . . . . . . . 1 . . . . . . 2 1 1 . Tunneler 3 | 2 . . . . . . . . . . . . . . . . . . . . . . . 1 . . . . . . . Hauler 15 | . . . 2 . . 5 . . . . . . 1 . . . . . . . 1 . . . 4 . . 2 . . . Recycler 19 | 1 . . 4 . . 1 1 . . . . . 3 . . . . . . . 3 . . . 3 . . . . . 3 Operator 16 | . . . 1 . . 1 . . . . . . . . . . . . . . 1 . 8 . 1 . . 2 1 1 . Watcher 8 | . 1 . . . . . . . . . . . . . . . . . . . 2 1 . . . . . . . 2 2 Swarmer 36 | . . 1 4 2 . . . . . . . 4 . . . . 2 . . . . 3 . 8 . . . . 3 9 . Grunt 82 | . 2 5 7 . . 12 . . 6 . . . 2 3 . . 3 2 . . 6 2 . 2 1 . . 8 . 17 4 Brawler 7 | . . . . . . . . . 1 . . . . . . . . . . . . . . . 1 . . . . 2 3 Duelist 3 | . . . . . . . . . . . . . . . . . . . . . . 1 . . . . . . . 1 1 Researcher 1 | . . . . . . . . . . . . . . . . . . . . . . . . . . . . 1 . . . Sentry 23 | . . . 2 . . 7 . . . . . . 2 . . . . . . . 2 . 2 5 . . . . . 2 1 Hunter 15 | . . . . . . 1 . . . . . . . . . . . . . . 3 . . . . . . 3 . 6 2 Programmer 61 | . . . . . . . . . . . . 2 . . . . . . . . . . . . . 1 1 18 10 14 15 Heavy 2 | . . . . . . . . . . . . . . . . . . 1 . . 1 . . . . . . . . . . Behemoth 3 | . . . . . . . . . 1 . . . . . . . . . . . 2 . . . . . . . . . . Cetus Guard 5 | . . . . . . . . . . . . . . . . . . . . . . 5 . . . . . . . . . M Guard 2 | . . . . . . . . . . . . . . . . . . . . . . . . . . . . . . . 2 Combat Programmer 2 | . . . . . . . . . . . . . . . . . . . . . . . . . . . . . . . 2 Decomposer 5 | . . . . . . . . . 5 . . . . . . . . . . . . . . . . . . . . . . Samaritan 1 | . . . . . . . . . 1 . . . . . . . . . . . . . . . . . . . . . . Wasp 1 | . . . . . . . . . . . . . . . . . . . 1 . . . . . . . . . . . . Thug 1 | . . . . . . . . . . . . . . . . . . . . . . 1 . . . . . . . . . Martyr 2 | . . . . . . . . . . . . . . . . . . . 2 . . . . . . . . . . . . Mutant 1 | . . . . . . . . . 1 . . . . . . . . . . . . . . . . . . . . . . Best Kill Streak 7 | 2 2 2 4 2 . 3 1 . 4 . . 4 2 5 . . 3 2 . . 3 6 7 7 3 1 1 5 2 5 4 Combat Bots Only 7 | . 2 2 4 2 . 3 . . 4 . . 4 1 3 . . 3 2 . . 3 6 1 7 1 1 1 4 2 5 4 Max Kills in Single Turn 3 | 1 1 2 2 1 . 2 1 . 1 . . 3 2 1 . . 2 1 1 . 2 2 1 2 1 1 1 1 1 1 1 Gunslinging 1 | . . 1 . . . . . . . . . . . . . . 1 . . . . 1 . 1 . . . . . . . Exploded 3 | . . . . . . . . . 1 . . 3 1 . . . . . . . . . . . . . . . . . . Melee 1 | . . . . . . . . . . . . . . . . . . . . . . . . . . . 1 1 1 1 1 Uniques/NPCs Destroyed 1 | . . . . . . . . . . . . . . . . . . . . . . . . . . . . . . . 1 MAIN.C Shell (-1/Command) Combat | -11 -10 -10 -9 -9 -8 -8 -8 -6 -6 -6 -6 -5 -5 -5 -5 -5 -4 -4 -4 -4 -4 -4 -4 -4 -3 -3 -2 -2 -2 -1 -1 -------- Run | Scr Mat Min Mat Min Mat Sto Rec Fac Low Low Dat Pro Fac Upp Upp Zhi Pro Fac Was Fac Ext Cet Arc Hub Res Qua Res Tes Sec Acc Com Damage Taken 43423 | . 22 184 256 15 . 668 . . 1000 . . 1125 162 263 . . 234 1036 . 23 3803 955 46 1499 170 452 383 6123 3600 7799 13605 Core 4064 | . 10 52 36 . . 118 . . 218 . . 115 62 38 . . 12 160 . . 363 50 . 110 . 175 . 142 698 240 1465 Absorbed by Shields 195 | . . . . . . . . . . . . . . . . . . . . . 195 . . . . . . . . . . Reduced by Siege Mode 2091 | . . . . . . . . . . . . . . . . . . . . . 87 67 . 42 . . . 239 . 572 1084 Core Remaining (%) 72 | 100 . 75 . 91 . . 78 . . . . 60 . . . . 88 . . . . . . 33 . 86 . . 42 . . Volleys Fired 757 | 5 24 22 41 2 . 64 2 . 37 . . 12 33 4 . . 8 14 12 1 88 29 19 30 23 10 . 19 8 111 139 Largest 5 | 2 2 2 4 4 . 4 4 . 4 . . 4 4 4 . . 4 4 4 1 4 4 4 4 4 4 . 4 2 5 5 Hottest 534 | 40 100 100 83 89 . 244 244 . 244 . . 258 216 216 . . 228 170 145 57 276 186 186 145 190 190 . 190 70 534 314 Shots Fired 2222 | 10 34 41 164 8 . 254 8 . 132 . . 35 68 16 . . 32 50 42 1 310 98 70 90 55 19 . 45 13 317 310 Gun 1443 | 10 20 38 164 8 . 254 8 . 126 . . 32 46 16 . . 32 37 28 . 225 98 70 80 27 12 . 32 13 12 55 Cannon 745 | . . . . . . . . . . . . . 22 . . . . 13 14 1 85 . . 10 21 7 . 13 . 305 254 Launcher 10 | . . . . . . . . . 6 . . 3 . . . . . . . . . . . . . . . . . . 1 Special 24 | . 14 3 . . . . . . . . . . . . . . . . . . . . . . 7 . . . . . . Kinetic 1300 | 10 20 38 164 8 . 112 . . . . . 7 40 8 . . 22 37 32 1 242 85 60 90 48 19 . 45 13 . 199 Thermal 866 | . 14 3 . . . 142 8 . 126 . . 25 28 8 . . 10 . 10 . 68 13 10 . 7 . . . . 317 77 Explosive 10 | . . . . . . . . . 6 . . 3 . . . . . . . . . . . . . . . . . . 1 Electromagnetic 46 | . . . . . . . . . . . . . . . . . . 13 . . . . . . . . . . . . 33 Robot Hit Streak 90 | 6 6 9 12 2 . 14 2 . 22 . . 13 10 2 . . 8 9 4 . 17 30 16 26 12 4 . 17 . 38 90 Robot Miss Streak 8 | 1 2 3 5 1 . 4 1 . 3 . . 2 4 4 . . 8 5 4 . 5 3 2 2 2 3 . 1 . 3 3 Penetration Max 1 | . . . . . . . . . . . . . 1 1 . . 1 1 . . 1 1 . 1 1 . . . . . . Secondary Targets 26 | . 1 1 1 . . 3 . . 2 . . 1 . 2 . . 2 . . . . 6 . 6 . . . 1 . . . Max Gunslinging Chain 2 | . 1 1 1 . . 1 . . 1 . . 1 . 1 . . 1 . . . . 1 . 2 . . . 1 . . . Shots Hit Robots 1663 | 8 13 26 80 2 . 144 3 . 96 . . 26 45 6 . . 16 28 21 . 186 80 46 62 33 8 2 115 35 242 340 Core Hits 639 | 4 4 12 33 3 . 59 1 . 39 . . 10 23 6 . . 9 13 9 . 57 42 18 28 17 2 1 43 15 89 102 Critical Kills 29 | . . . 1 . . . . . . . . . 2 . . . . 2 . . 1 4 4 5 3 . . 4 . 3 . Critical Parts Destroyed 31 | . . . 1 . . . . . . . . . 1 . . . 1 1 . . 4 7 3 5 . 1 . 4 . . 3 Critical Strikes 126 | . . . 2 . . 7 . . 9 . . . 3 . . . 1 3 1 . 12 13 8 11 7 2 . 15 1 8 23 Burn 18 | . . . . . . 7 . . 9 . . . . . . . . . . . 2 . . . . . . . . . . Meltdown 1 | . . . . . . . . . . . . . . . . . . . . . . . . . . . . . . 1 . Destroy 62 | . . . 2 . . . . . . . . . 3 . . . 1 3 . . 5 13 8 10 3 1 . 8 . 2 3 Blast 22 | . . . . . . . . . . . . . . . . . . . 1 . 5 . . 1 4 1 . 1 . . 9 Corrupt 1 | . . . . . . . . . . . . . . . . . . . . . . . . . . . . . . . 1 Sever 22 | . . . . . . . . . . . . . . . . . . . . . . . . . . . . 6 1 5 10 Melee Attacks 469 | . . . . . . 3 . . . 1 . . 6 . . . . . . . . . . . . 6 7 140 108 69 129 Impact 3 | . . . . . . 3 . . . . . . . . . . . . . . . . . . . . . . . . . Slashing 456 | . . . . . . . . . . . . . . . . . . . . . . . . . . 6 7 140 105 69 129 Piercing 10 | . . . . . . . . . . 1 . . 6 . . . . . . . . . . . . . . . 3 . . Sneak Attacks 26 | . . . . . . . . . . . . . . . . . . . . . . . . . . . 1 16 2 . 7 Combat Hostiles . | . . . . . . . . . . . . . . . . . . . . . . . . . . . . . . . . Follow-up Attacks 35 | . . . . . . . . . . . . . . . . . . . . . . . . . . . . 9 9 5 12 Damage Inflicted 71308 | 97 198 374 981 39 . 2490 76 . 2311 . . 760 1209 215 . . 415 801 771 12 4755 2205 1163 1877 1237 342 393 10030 3322 11514 23721 Guns 18914 | 97 183 369 972 24 . 2461 76 . 1813 . . 491 846 215 . . 415 558 395 . 2838 2205 1163 1493 551 130 . 636 . 204 779 Cannons 21869 | . . . . . . . . . . . . . 354 . . . . 243 376 . 1914 . . 384 580 141 . 332 . 8013 9532 Explosions 767 | . . . . . . . . . 498 . . 269 . . . . . . . . . . . . . . . . . . . Melee 29552 | . . . . . . . . . . . . . 9 . . . . . . . . . . . . 71 393 9062 3322 3297 13398 Ramming 112 | . 15 5 9 15 . 29 . . . . . . . . . . . . . 12 3 . . . 12 . . . . . 12 Kinetic 23502 | 97 183 369 972 24 . 1123 . . . . . 80 803 153 . . 345 558 601 . 3376 1937 1068 1877 1131 271 . 968 . . 7566 Thermal 16681 | . . . . . . 1338 76 . 1813 . . 411 397 62 . . 70 . 170 . 1376 268 95 . 94 . . . . 8217 2294 Explosive 767 | . . . . . . . . . 498 . . 269 . . . . . . . . . . . . . . . . . . . Electromagnetic 694 | . . . . . . . . . . . . . . . . . . 243 . . . . . . . . . . . . 451 Impact . | . . . . . . . . . . . . . . . . . . . . . . . . . . . . . . . . Slashing 29506 | . . . . . . . . . . . . . . . . . . . . . . . . . . 71 393 9062 3285 3297 13398 Piercing 46 | . . . . . . . . . . . . . 9 . . . . . . . . . . . . . . . 37 . . Highest Corruption 85 | . . . . . . . . . . . . 1 . . . . . 2 2 2 2 3 3 18 1 1 . 30 50 19 85 Average Corruption 13 | . . . . . . . . . . . . 1 . . . . . 2 2 2 2 2 2 11 1 1 . 16 37 13 26 Corruption Purged 17 | . . . . . . . . . . . . . . . . . . . . . . . 3 . . . . . . 7 7 Effects 448 | . . . . . . . . . . . . 1 . . . . . . 7 5 35 9 8 . 1 2 . 93 78 84 125 Message Errors 116 | . . . . . . . . . . . . 1 . . . . . . 2 2 16 3 2 . . . . 21 19 20 30 Matter Fused 100 | . . . . . . . . . . . . . . . . . . . . . . . 3 . . . . 26 20 18 33 Heat Flow Errors 56 | . . . . . . . . . . . . . . . . . . . 2 2 8 2 2 . . . . 12 10 7 11 Energy Discharges 49 | . . . . . . . . . . . . . . . . . . . 1 . 7 . 1 . 1 1 . 8 11 15 4 Parts Rejected 12 | . . . . . . . . . . . . . . . . . . . . . . . . . . . . 4 2 4 2 Data Loss (minor) 52 | . . . . . . . . . . . . . . . . . . . 2 1 2 2 . . . 1 . 17 4 6 17 Data Loss (major) 14 | . . . . . . . . . . . . . . . . . . . . . . . . . . . . 1 6 1 6 Misfires 9 | . . . . . . . . . . . . . . . . . . . . . . . . . . . . . . 6 3 Alerts 9 | . . . . . . . . . . . . . . . . . . . . . . . . . . . . 1 2 2 4 Misdirections 7 | . . . . . . . . . . . . . . . . . . . . . . . . . . . . 1 3 1 2 Weapon Failures 24 | . . . . . . . . . . . . . . . . . . . . . 2 2 . . . . . 2 1 4 13 Overload Shots 4 | . . . . . . . . . . . . . . . . . . . . . 4 . . . . . . . . . . Effects 1 | . . . . . . . . . . . . . . . . . . . . . 1 . . . . . . . . . . Meltdown 1 | . . . . . . . . . . . . . . . . . . . . . 1 . . . . . . . . . . Overflow Damage 6923 | . . . . . . . . . 5 . . . 1 . . . . 7 . . 11 . . 39 75 50 269 2312 639 768 2747 Projectiles 1079 | . . . . . . . . . . . . . 1 . . . . 7 . . 11 . . 39 75 34 . 10 . 545 357 Explosions 5 | . . . . . . . . . 5 . . . . . . . . . . . . . . . . . . . . . . Melee 5839 | . . . . . . . . . . . . . . . . . . . . . . . . . . 16 269 2302 639 223 2390 Knockbacks 33 | . . . . . . . . . . . . . . . . . . . . . 3 . . 1 1 2 . 3 . . 23 Impact . | . . . . . . . . . . . . . . . . . . . . . . . . . . . . . . . . Kinetic 30 | . . . . . . . . . . . . . . . . . . . . . 3 . . 1 1 2 . 3 . . 20 Secondary 3 | . . . . . . . . . . . . . . . . . . . . . . . . . . . . . . . 3 Self-Inflicted Damage 67 | . . . . . . . . . 52 . . 9 . . . . . . . . . . . . . . . . . . 6 Shots 3 | . . . . . . . . . 2 . . 1 . . . . . . . . . . . . . . . . . . . Rammed 24 | . 7 3 2 2 . 3 . . . . . . . . . . . . . 1 1 . . . 2 . . . . . 3 Targets Rammed 28 | . 8 3 3 3 . 4 . . . . . . . . . . . . . 1 1 . . . 2 . . . . . 3 Kicked . | . . . . . . . . . . . . . . . . . . . . . . . . . . . . . . . . Crushed 4 | . 1 . 1 1 . 1 . . . . . . . . . . . . . . . . . . . . . . . . . Highest Temperature 342 | . 60 40 141 30 . 326 342 . 215 3 . 210 39 23 . . 36 . 177 169 219 50 226 48 . . . 233 191 204 216 Average Temperature 66 | . 20 15 37 17 . 71 173 . 105 3 . 117 19 18 . . 22 . 107 99 64 45 123 16 . . . 97 87 38 103 Received Heat Transfer 3408 | . 12 72 102 . . 324 . . 201 . . 96 63 90 . . 82 87 . 9 353 48 . 141 . . . 315 45 540 828 Siege Activations 51 | . . . . . . . . . . . . . . . . . . . . . 9 3 1 4 1 . . 4 . 18 11 Total Turns 1194 | . . . . . . . . . . . . . . . . . . . . . 135 82 49 63 7 . . 140 . 353 365 Longest Duration 80 | . . . . . . . . . . . . . . . . . . . . . 40 33 49 24 7 . . 51 . 68 80 Robots Corrupted 4 | . . . . . . . . . . . . . . . . . . . . . . . . . . . . . . . 4 Combat Hostiles 4 | . . . . . . . . . . . . . . . . . . . . . . . . . . . . . . . 4 Parts Fried 3 | . . . . . . . . . . . . . . . . . . . . . . . . . . . . . . . 3 Impact Corruptions . | . . . . . . . . . . . . . . . . . . . . . . . . . . . . . . . . Robots Melted 4 | . . . . . . . . . . . . . . . . . . . . . . . . . . . . . . 4 . Combat Hostiles 4 | . . . . . . . . . . . . . . . . . . . . . . . . . . . . . . 4 . Parts Melted 41 | . . . . . . 5 1 . 6 . . 1 2 . . . . 1 . . 3 . . . 1 . . . . 19 2 Heat Transferred 20658 | . . . . . . 3071 148 . 4107 . . 777 624 111 . . 111 . 250 . 2187 407 148 . 222 . . . . 7215 1280 Parts Sabotaged 1 | . . . . . . . . . . . . . . . . . . . . . . . . . . . . . . . 1 Parts Stolen . | . . . . . . . . . . . . . . . . . . . . . . . . . . . . . . . . Parts Stripped . | . . . . . . . . . . . . . . . . . . . . . . . . . . . . . . . . Power Chain Reactions . | . . . . . . . . . . . . . . . . . . . . . . . . . . . . . . . . Missiles Intercepted 14 | . . . . . . . . . . . . . . . . . . . . . . . . . . . . . . . 14 Alert | -11 -10 -10 -9 -9 -8 -8 -8 -6 -6 -6 -6 -5 -5 -5 -5 -5 -4 -4 -4 -4 -4 -4 -4 -4 -3 -3 -2 -2 -2 -1 -1 ------- Run | Scr Mat Min Mat Min Mat Sto Rec Fac Low Low Dat Pro Fac Upp Upp Zhi Pro Fac Was Fac Ext Cet Arc Hub Res Qua Res Tes Sec Acc Com Peak Influence 1201 | 15 88 135 435 187 72 284 93 917 . . . . 548 . . . . 324 106 102 441 627 322 559 300 170 74 508 322 1201 1038 Initial 917 | . 9 33 . 117 72 29 58 917 . . . . 35 . . . . 82 96 . 49 246 170 42 237 38 9 41 258 175 761 Average 255 | 8 48 33 151 132 72 147 53 917 . . . . 248 . . . . 195 28 40 132 359 246 327 223 102 39 190 191 524 813 Maximum Alert Level 4 | . . . 2 . . 1 . 3 . . . . 2 . . . . 1 . . 2 2 1 2 1 . . 2 1 4 3 Low Security (%) 56 | 100 100 100 68 100 100 69 100 . . . . . 58 . . . . 50 100 100 73 4 33 17 43 100 100 63 58 8 . Level 1 20 | . . . 27 . . 30 . . . . . . . . . . . 50 . . 19 52 66 50 56 . . 16 41 39 . Level 2 11 | . . . 3 . . . . . . . . . 40 . . . . . . . 7 43 . 32 . . . 20 . 24 22 Level 3 10 | . . . . . . . . 100 . . . . . . . . . . . . . . . . . . . . . 20 77 Level 4 . | . . . . . . . . . . . . . . . . . . . . . . . . . . . . . . 7 . Level 5 . | . . . . . . . . . . . . . . . . . . . . . . . . . . . . . . . . High Security . | . . . . . . . . . . . . . . . . . . . . . . . . . . . . . . . . Max Security . | . . . . . . . . . . . . . . . . . . . . . . . . . . . . . . . . Squads Dispatched 64 | . 2 . 3 . . 2 . 1 . . . . 1 . . . . 1 . 2 3 . . 5 6 2 . 10 8 9 9 Investigation 10 | . 1 . 2 . . 1 . . . . . . . . . . . . . . 2 . . 1 2 . . . . 1 . Extermination 22 | . . . . . . . . . . . . . . . . . . . . . . . . . . . . 6 4 6 6 Reinforcement 24 | . 1 . 1 . . 1 . 1 . . . . 1 . . . . 1 . 2 1 . . . 4 2 . 4 4 1 . Assault 5 | . . . . . . . . . . . . . . . . . . . . . . . . 1 . . . . . 1 3 Garrison 3 | . . . . . . . . . . . . . . . . . . . . . . . . 3 . . . . . . . Intercept . | . . . . . . . . . . . . . . . . . . . . . . . . . . . . . . . . Construction Impeded 1 | . . . . . . . . . . . . . . . . . . . . . 1 . . . . . . . . . . Haulers Reinforced 7 | . . . . . . . . . . . . . 1 . . . . 1 . 1 . . . . 3 . . 1 . . . Active Scanning Responses . | . . . . . . . . . . . . . . . . . . . . . . . . . . . . . . . . Cargo Convoy Interrupts . | . . . . . . . . . . . . . . . . . . . . . . . . . . . . . . . . Stealth | -11 -10 -10 -9 -9 -8 -8 -8 -6 -6 -6 -6 -5 -5 -5 -5 -5 -4 -4 -4 -4 -4 -4 -4 -4 -3 -3 -2 -2 -2 -1 -1 --------- Run | Scr Mat Min Mat Min Mat Sto Rec Fac Low Low Dat Pro Fac Upp Upp Zhi Pro Fac Was Fac Ext Cet Arc Hub Res Qua Res Tes Sec Acc Com Distress Signals 29 | . . 2 5 . . 1 . . . . . . . . . . . . . . 1 2 1 . 5 . 1 1 5 3 2 Communications Jammed 64 | . . . . . . . . . . . . . . . . . . . . . . . . . . 1 1 23 39 . . Distress Signals 62 | . . . . . . . . . . . . . . . . . . . . . . . . . . 1 . 23 38 . . Times Spotted 432 | . 10 7 24 3 . 23 7 . 9 . . 8 8 4 . . 11 9 8 1 32 17 12 21 9 9 2 46 30 78 44 Peak Tracking Total 8 | . 2 4 7 2 . 3 4 . 4 . . 5 3 4 . . 4 6 6 1 5 6 1 7 4 2 1 5 8 7 5 Tactical Retreats 32 | . . 1 2 1 . . . . 1 . . . . . . . 1 . . . 4 . . . . . 1 5 7 8 1 Traps | -11 -10 -10 -9 -9 -8 -8 -8 -6 -6 -6 -6 -5 -5 -5 -5 -5 -4 -4 -4 -4 -4 -4 -4 -4 -3 -3 -2 -2 -2 -1 -1 ------- Run | Scr Mat Min Mat Min Mat Sto Rec Fac Low Low Dat Pro Fac Upp Upp Zhi Pro Fac Was Fac Ext Cet Arc Hub Res Qua Res Tes Sec Acc Com Traps Triggered 19 | . . . 2 . . 5 . . . . . . . . . . . 1 . . 1 . . . 4 . . . 1 5 . Indirectly . | . . . . . . . . . . . . . . . . . . . . . . . . . . . . . . . . Trap Hack Attempts . | . . . . . . . . . . . . . . . . . . . . . . . . . . . . . . . . Triggered . | . . . . . . . . . . . . . . . . . . . . . . . . . . . . . . . . Disarmed 1 | . . . . . . . . . . . . . . . . . . . . . . . . . . . . 1 . . . Reprogrammed . | . . . . . . . . . . . . . . . . . . . . . . . . . . . . . . . . Reused . | . . . . . . . . . . . . . . . . . . . . . . . . . . . . . . . . Traps Extracted . | . . . . . . . . . . . . . . . . . . . . . . . . . . . . . . . . Installed . | . . . . . . . . . . . . . . . . . . . . . . . . . . . . . . . . Triggered 3 | . . . . . . . . . . . . . . . . . 2 1 . . . . . . . . . . . . . Machines | -11 -10 -10 -9 -9 -8 -8 -8 -6 -6 -6 -6 -5 -5 -5 -5 -5 -4 -4 -4 -4 -4 -4 -4 -4 -3 -3 -2 -2 -2 -1 -1 ---------- Run | Scr Mat Min Mat Min Mat Sto Rec Fac Low Low Dat Pro Fac Upp Upp Zhi Pro Fac Was Fac Ext Cet Arc Hub Res Qua Res Tes Sec Acc Com Machines Disabled 39 | . . . . . . 4 . . . . . . 2 . . . . . . . 5 . 4 4 1 2 . 4 9 3 1 Max in Single Turn 2 | . . . . . . 1 . . . . . . 2 . . . . . . . 2 . 1 1 1 1 . 1 1 1 1 Garrison Access 3 | . . . . . . . . . . . . . . . . . . . . 1 . . . 1 1 . . . . . . Network Hub 2 | . . . . . . . . . . . . . . . . . . . . . . . . 2 . . . . . . . Machines Sabotaged 1 | . . . . . . . . . . . . . . . . . . . . . . . . 1 . . . . . . . Garrisons Compromised . | . . . . . . . . . . . . . . . . . . . . . . . . . . . . . . . . Overloaded Fab Kills . | . . . . . . . . . . . . . . . . . . . . . . . . . . . . . . . . Fab Network Shutdowns 2 | . . . . . . . . . . . . . 1 . . . . . . . . . . . . . . 1 . . . Hacking | -11 -10 -10 -9 -9 -8 -8 -8 -6 -6 -6 -6 -5 -5 -5 -5 -5 -4 -4 -4 -4 -4 -4 -4 -4 -3 -3 -2 -2 -2 -1 -1 --------- Run | Scr Mat Min Mat Min Mat Sto Rec Fac Low Low Dat Pro Fac Upp Upp Zhi Pro Fac Was Fac Ext Cet Arc Hub Res Qua Res Tes Sec Acc Com Machines Accessed 80 | . 3 1 3 . . 9 4 . 2 . 3 . 2 1 1 4 . 2 . 4 9 1 . 3 6 4 1 7 4 4 2 Terminals 46 | . 2 . 1 . . 6 3 . . . . . 1 . . . . 1 . 3 8 1 . 2 3 3 1 3 3 3 2 Fabricators 4 | . . . . . . . . . . . . . 1 . . . . . . . . . . . 1 . . 1 . 1 . Repair Stations 7 | . . . . . . 2 . . . . . . . . . . . . . . 1 . . . 1 1 . 1 1 . . Recycling Units 4 | . 1 . 1 . . 1 1 . . . . . . . . . . . . . . . . . . . . . . . . Scanalyzers 3 | . . . 1 . . . . . . . . . . . . . . . . . . . . . . . . 2 . . . Garrison Access 4 | . . . . . . . . . . . . . . . . . . 1 . 1 . . . 1 1 . . . . . . Total Hacks 368 | . 11 1 12 . . 32 19 . 2 . 23 . 7 1 1 17 . 5 . 13 29 2 . 9 45 20 9 57 25 22 6 Successful 239 | . 5 1 8 . . 22 13 . 2 . 23 . 6 1 1 17 . 4 . 5 22 1 . 8 24 12 4 34 15 8 3 Failed 125 | . 5 . 4 . . 10 5 . . . . . 1 . . . . 1 . 8 7 1 . 1 21 7 5 22 10 14 3 Catastrophic 13 | . . . 1 . . . 1 . . . . . . . . . . . . 1 . . . . 3 1 2 2 . 2 . Database Lockouts 4 | . 1 . . . . . 1 . . . . . . . . . . . . . . . . . . 1 . 1 . . . Manual 112 | . 4 . 1 . . 11 8 . . . . . 2 . . . . 3 . . 10 1 . 9 10 7 9 24 10 3 . Terminals 239 | . 10 . 3 . . 26 18 . . . . . 4 . . . . 2 . 11 27 2 . 5 21 17 9 43 19 16 6 Fabricators 21 | . . . . . . . . . . . . . 3 . . . . . . . . . . . 7 . . 5 . 6 . Repair Stations 33 | . . . . . . 5 . . . . . . . . . . . . . . 2 . . . 13 3 . 4 6 . . Recycling Units 4 | . 1 . 1 . . 1 1 . . . . . . . . . . . . . . . . . . . . . . . . Scanalyzers 13 | . . . 8 . . . . . . . . . . . . . . . . . . . . . . . . 5 . . . Garrison Access 13 | . . . . . . . . . . . . . . . . . . 3 . 2 . . . 4 4 . . . . . . Terminal Hacks 159 | . 4 1 . . . 13 11 . 2 . 23 . 2 1 1 17 . 1 . 4 17 1 . 1 6 9 4 25 9 4 3 Record 12 | . . . . . . . . . . . 6 . . . . 5 . . . . 1 . . . . . . . . . . Part Schematic 21 | . . . . . . . 4 . . . 6 . . . . 4 . . . . 4 . . . 1 1 . 1 . . . Robot Schematic 10 | . . . . . . . 1 . . . 8 . . . . . . . . . . . . . . . . . 1 . . Robot Analysis 5 | . 1 . . . . . . . . . . . . . . 4 . . . . . . . . . . . . . . . Prototype ID Bank 22 | . . . . . . 1 2 . . . 3 . . . . 4 . . . 1 3 . . . 1 2 . 3 1 1 . Open Door 11 | . . 1 . . . 2 . . 2 . . . . 1 1 . . . . . . 1 . . . . . . 2 . 1 Level Access Points 3 | . . . . . . . . . . . . . . . . . . . . . . . . . 1 . . 1 . . 1 Branch Access Points 4 | . . . . . . . . . . . . . . . . . . . . 1 . . . . 1 . 1 . . 1 . Emergency Access Points 2 | . . . . . . . . . . . . . 1 . . . . . . . . . . . . . . . 1 . . Machine Index 3 | . . . . . . . . . . . . . . . . . . 1 . . . . . . . 1 . 1 . . . Terminal Index 6 | . . . . . . 2 1 . . . . . . . . . . . . 1 . . . 1 . . 1 . . . . Scanalyzer Index 1 | . . . . . . . . . . . . . . . . . . . . . . . . . . . . 1 . . . Garrison Index 1 | . . . . . . . . . . . . . . . . . . . . 1 . . . . . . . . . . . Alert Level 13 | . . . . . . 2 1 . . . . . . . . . . . . . 2 . . . . 1 . 4 1 1 1 Unreport Threat 13 | . . . . . . 2 1 . . . . . . . . . . . . . 3 . . . . . . 5 1 1 . Locate Traps 5 | . 2 . . . . . . . . . . . . . . . . . . . 2 . . . . . . 1 . . . Disarm Traps 1 | . . . . . . . . . . . . . . . . . . . . . . . . . . . . 1 . . . Dispatch Records 2 | . . . . . . . . . . . . . . . . . . . . . . . . . . . . 2 . . . Maintenance Status 4 | . . . . . . 1 . . . . . . . . . . . . . . . . . . . 1 1 1 . . . Security Status 1 | . . . . . . 1 . . . . . . . . . . . . . . . . . . . . . . . . . Patrol Status 4 | . . . . . . . . . . . . . . . . . . . . . 1 . . . . 1 1 1 . . . Recall Reinforcements 2 | . . . . . . . . . . . . . . . . . . . . . . . . . . . . 2 . . . Hauler Manifests 3 | . . . . . . 1 . . . . . . . . . . . . . . . . . . . 1 . . 1 . . Registered Components 3 | . 1 . . . . . . . . . . . . . . . . . . . . . . . 1 1 . . . . . Registered Prototypes 1 | . . . . . . . . . . . . . 1 . . . . . . . . . . . . . . . . . . Zone Layout 5 | . . . . . . 1 1 . . . . . . . . . . . . . 1 . . . 1 . . . 1 . . Protovariant Controls 1 | . . . . . . . . . . . . . . . . . . . . . . . . . . . . 1 . . . Fabricator Hacks 10 | . . . . . . . . . . . . . 2 . . . . . . . . . . . 3 . . 3 . 2 . Network Status 1 | . . . . . . . . . . . . . . . . . . . . . . . . . 1 . . . . . . Load Schematic 4 | . . . . . . . . . . . . . 1 . . . . . . . . . . . 1 . . 1 . 1 . Build 5 | . . . . . . . . . . . . . 1 . . . . . . . . . . . 1 . . 2 . 1 . Repair Station Hacks 22 | . . . . . . 4 . . . . . . . . . . . . . . 2 . . . 8 2 . 2 4 . . Scan Component 12 | . . . . . . 2 . . . . . . . . . . . . . . 1 . . . 4 1 . 1 3 . . Repair 10 | . . . . . . 2 . . . . . . . . . . . . . . 1 . . . 4 1 . 1 1 . . Recycling Unit Hacks . | . . . . . . . . . . . . . . . . . . . . . . . . . . . . . . . . Scanalyzer 11 | . . . 7 . . . . . . . . . . . . . . . . . . . . . . . . 4 . . . Insert Component 6 | . . . 3 . . . . . . . . . . . . . . . . . . . . . . . . 3 . . . Analyze 5 | . . . 4 . . . . . . . . . . . . . . . . . . . . . . . . 1 . . . Garrison Access Hacks 2 | . . . . . . . . . . . . . . . . . . . . 1 . . . . 1 . . . . . . Seal Access 2 | . . . . . . . . . . . . . . . . . . . . 1 . . . . 1 . . . . . . Unauthorized Hacks 35 | . 1 . 1 . . 5 2 . . . . . 2 . . . . 3 . . 3 . . 7 6 1 . . 2 2 . Terminals 20 | . . . . . . 4 1 . . . . . 1 . . . . . . . 3 . . 4 3 1 . . 2 1 . Track 5 | . . . . . . 1 . . . . . . 1 . . . . . . . 1 . . 1 . . . . . 1 . Assimilate 4 | . . . . . . . . . . . . . . . . . . . . . . . . 1 2 1 . . . . . Botnet 6 | . . . . . . 2 1 . . . . . . . . . . . . . 2 . . . . . . . 1 . . Operators 4 | . . . . . . 1 . . . . . . . . . . . . . . . . . 1 1 . . . 1 . . Sabotage 1 | . . . . . . . . . . . . . . . . . . . . . . . . 1 . . . . . . . Fabricators 5 | . . . . . . . . . . . . . 1 . . . . . . . . . . . 3 . . . . 1 . Report 1 | . . . . . . . . . . . . . . . . . . . . . . . . . 1 . . . . . . Prioritize 3 | . . . . . . . . . . . . . 1 . . . . . . . . . . . 1 . . . . 1 . Siphon 1 | . . . . . . . . . . . . . . . . . . . . . . . . . 1 . . . . . . Repair Stations . | . . . . . . . . . . . . . . . . . . . . . . . . . . . . . . . . Recycling Units 4 | . 1 . 1 . . 1 1 . . . . . . . . . . . . . . . . . . . . . . . . Tunnel 4 | . 1 . 1 . . 1 1 . . . . . . . . . . . . . . . . . . . . . . . . Scanalyzers . | . . . . . . . . . . . . . . . . . . . . . . . . . . . . . . . . Garrison Access 6 | . . . . . . . . . . . . . . . . . . 3 . . . . . 3 . . . . . . . Broadcast 2 | . . . . . . . . . . . . . . . . . . 1 . . . . . 1 . . . . . . . Reprogram 3 | . . . . . . . . . . . . . . . . . . 1 . . . . . 2 . . . . . . . Watchers 1 | . . . . . . . . . . . . . . . . . . 1 . . . . . . . . . . . . . Data Cores Recovered 2 | . . . . . . . . . . . . . . . . . . . . . 2 . . . . . . . . . . Used 1 | . . . . . . . . . . . . . . . . . . . . . 1 . . . . . . . . . . Hacking Detections 46 | . 2 . 1 . . 6 3 . . . . . 2 . . . . 2 . 3 7 1 . 1 3 3 1 5 1 4 1 Full Trace Events 6 | . . . 1 . . 1 . . . . . . . . . . . . . . 2 . . . 1 . . . . 1 . Feedback Events . | . . . . . . . . . . . . . . . . . . . . . . . . . . . . . . . . Feedback Blocked . | . . . . . . . . . . . . . . . . . . . . . . . . . . . . . . . . Robot Schematics Acquired 10 | . . . . . . . 1 . . . 8 . . . . . . . . . . . . . . . . . 1 . . Robots Built . | . . . . . . . . . . . . . . . . . . . . . . . . . . . . . . . . Matter . | . . . . . . . . . . . . . . . . . . . . . . . . . . . . . . . . Time . | . . . . . . . . . . . . . . . . . . . . . . . . . . . . . . . . Total Robot Build Rating . | . . . . . . . . . . . . . . . . . . . . . . . . . . . . . . . . Part Schematics Acquired 25 | . . . 3 . . . 4 . . . 6 . . . . 4 . . . . 4 . . . 1 1 . 2 . . . Parts Built 4 | . . . . . . . . . . . . . 1 . . . . . . . . . . . 1 . . 1 . 1 . Matter 1536 | . . . . . . . . . . . . . 318 . . . . . . . . . . . 384 . . 417 . 417 . Time 473 | . . . . . . . . . . . . . 84 . . . . . . . . . . . 204 . . 111 . 74 . Total Part Build Rating 32 | . . . . . . . . . . . . . 6 . . . . . . . . . . . 8 . . 9 . 9 . Parts Repaired 10 | . . . . . . 2 . . . . . . . . . . . . . . 1 . . . 4 1 . 1 1 . . Time 477 | . . . . . . 64 . . . . . . . . . . . . . . 31 . . . 170 108 . 36 68 . . Parts Recycled . | . . . . . . . . . . . . . . . . . . . . . . . . . . . . . . . . Recycled Matter . | . . . . . . . . . . . . . . . . . . . . . . . . . . . . . . . . Retrieved Matter . | . . . . . . . . . . . . . . . . . . . . . . . . . . . . . . . . Retrieved Components . | . . . . . . . . . . . . . . . . . . . . . . . . . . . . . . . . Parts Scanalyzed 4 | . . . 3 . . . . . . . . . . . . . . . . . . . . . . . . 1 . . . Part Schematics Acquired 4 | . . . 3 . . . . . . . . . . . . . . . . . . . . . . . . 1 . . . Parts Damaged 1 | . . . 1 . . . . . . . . . . . . . . . . . . . . . . . . . . . . Bothacking | -11 -10 -10 -9 -9 -8 -8 -8 -6 -6 -6 -6 -5 -5 -5 -5 -5 -4 -4 -4 -4 -4 -4 -4 -4 -3 -3 -2 -2 -2 -1 -1 ------------ Run | Scr Mat Min Mat Min Mat Sto Rec Fac Low Low Dat Pro Fac Upp Upp Zhi Pro Fac Was Fac Ext Cet Arc Hub Res Qua Res Tes Sec Acc Com Used RIF Installer . | . . . . . . . . . . . . . . . . . . . . . . . . . . . . . . . . Robots Hacked . | . . . . . . . . . . . . . . . . . . . . . . . . . . . . . . . . Non-combat . | . . . . . . . . . . . . . . . . . . . . . . . . . . . . . . . . Combat . | . . . . . . . . . . . . . . . . . . . . . . . . . . . . . . . . Robot Hacks Applied . | . . . . . . . . . . . . . . . . . . . . . . . . . . . . . . . . Relay Couplers Released 2 | . . . . . . . . . . . . . . . . . . . . . . . . 2 . . . . . . . Machine Destruction 2 | . . . . . . . . . . . . . . . . . . . . . . . . 2 . . . . . . . Robots Rewired 10 | . . . . . . . . . . . . . . . . . . . . . 10 . . . . . . . . . . Allies Hacked 1 | . . . . . . . . . . . . . . . . . . . . . 1 . . . . . . . . . . Hacks Repelled . | . . . . . . . . . . . . . . . . . . . . . . . . . . . . . . . . Allies | -11 -10 -10 -9 -9 -8 -8 -8 -6 -6 -6 -6 -5 -5 -5 -5 -5 -4 -4 -4 -4 -4 -4 -4 -4 -3 -3 -2 -2 -2 -1 -1 -------- Run | Scr Mat Min Mat Min Mat Sto Rec Fac Low Low Dat Pro Fac Upp Upp Zhi Pro Fac Was Fac Ext Cet Arc Hub Res Qua Res Tes Sec Acc Com Total Allies 60 | . . 3 . . . . . . . . . 1 1 . . . . 3 19 . 15 5 . 6 . . . . . . 7 Largest Group 19 | . . 3 3 . . . . . . . . 1 1 . . . . 3 19 13 13 8 4 6 1 . . . . . 5 Highest-Rated Group 696 | . . 40 40 . . . . . . . . 95 49 . . . . 141 696 490 489 619 401 229 30 . . . . . 68 Highest-Rated Ally 156 | . . 16 16 . . . . . . . . 95 49 . . . . 47 50 46 156 156 116 48 30 . . . . . 15 Total Orders 72 | . . 2 1 . . . 2 2 . . . . 2 3 2 . 6 4 . . 2 14 2 2 6 9 3 6 4 . . STAY 8 | . . 1 . . . . . . . . . . . . . . . . . . . 6 . 1 . . . . . . . ROAM 3 | . . . 1 . . . . . . . . . . . . . . . . . . 1 1 . . . . . . . . FOLLOW 6 | . . 1 . . . . . . . . . . . . . . . 1 . . . 3 . 1 . . . . . . . EXPLORE 20 | . . . . . . . 1 1 . . . . . . . . . . . . 1 3 . . 3 4 2 3 2 . . RETURN 35 | . . . . . . . 1 1 . . . . 2 3 2 . 6 3 . . 1 1 1 . 3 5 1 3 2 . . Ally Attacks 477 | . . . 35 . . . . . . . . 5 7 19 3 . 32 35 72 37 133 57 17 5 1 . . . . . 19 Total Damage 12707 | . . . 348 . . . . . . . . 142 256 437 . . 679 1067 3084 664 3384 1345 649 203 32 . . . . . 417 Kills 60 | . . . 6 . . . . . . . . 1 2 1 . . 8 3 8 3 17 6 2 . . . . . . . 3 Allies Corrupted 5 | . . . . . . . . . . . . . . . . . . . . . . . . 3 . . . . 2 . . Allies Melted 2 | . . . . . . . . . . . . . . . . . . 1 . . 1 . . . . . . . . . . Intel | -11 -10 -10 -9 -9 -8 -8 -8 -6 -6 -6 -6 -5 -5 -5 -5 -5 -4 -4 -4 -4 -4 -4 -4 -4 -3 -3 -2 -2 -2 -1 -1 ------- Run | Scr Mat Min Mat Min Mat Sto Rec Fac Low Low Dat Pro Fac Upp Upp Zhi Pro Fac Was Fac Ext Cet Arc Hub Res Qua Res Tes Sec Acc Com Robot Analysis Total 5 | . 1 . . . . . . . . . . . . . . 4 . . . . . . . . . . . . . . . Derelict Logs Recovered 10 | . . 2 . 2 . . . . 1 . . 1 . 2 1 . 1 . . . . . . . . . . . . . . Drone Launches 64 | . . . . . . . 1 1 . . . . 4 8 4 . 11 5 . . 2 4 . . 5 5 2 5 7 . . Drone Recoveries 58 | . . . . . . . 1 1 . . . . 4 6 4 . 11 5 . . 1 2 2 . 5 5 2 5 4 . . Decoded 0b10 Intel 9 | . . . . . . . . . . . . . 7 . . . . 2 . . . . . . . . . . . . . Traps 4 | . . . . . . . . . . . . . 4 . . . . . . . . . . . . . . . . . . Emergency Access 4 | . . . . . . . . . . . . . 2 . . . . 2 . . . . . . . . . . . . . Exits 1 | . . . . . . . . . . . . . 1 . . . . . . . . . . . . . . . . . . Exploration | -11 -10 -10 -9 -9 -8 -8 -8 -6 -6 -6 -6 -5 -5 -5 -5 -5 -4 -4 -4 -4 -4 -4 -4 -4 -3 -3 -2 -2 -2 -1 -1 ------------- Run | Scr Mat Min Mat Min Mat Sto Rec Fac Low Low Dat Pro Fac Upp Upp Zhi Pro Fac Was Fac Ext Cet Arc Hub Res Qua Res Tes Sec Acc Com Turns Passed 28389 | 128 652 1403 850 175 42 2092 222 40 1886 254 80 361 826 395 566 196 605 264 1610 335 3070 408 542 653 809 538 182 2721 1467 2566 2451 Spaces Moved 13348 | 67 249 424 374 100 26 928 186 24 1305 234 77 341 511 306 469 152 477 147 344 198 1257 154 211 295 324 328 113 1228 667 1000 832 Core 125 | 8 . . . . . . . . . . . 102 . . . . . . . . . . . . . . . . . . 15 Treads 7899 | 59 249 424 374 100 26 702 . . . . . 1 . . . . . . 286 198 1257 154 211 295 183 13 . 981 569 1000 817 Legs 192 | . . . . . . . . . . . . 2 190 . . . . . . . . . . . . . . . . . . Wheels 4853 | . . . . . . 226 186 24 1305 234 77 195 181 306 469 152 477 147 58 . . . . . 141 315 113 247 . . . Hover . | . . . . . . . . . . . . . . . . . . . . . . . . . . . . . . . . Flight 181 | . . . . . . . . . . . . 41 140 . . . . . . . . . . . . . . . . . . Fastest Speed 40 | 50 160 160 160 160 160 115 115 115 100 105 105 40 40 120 120 120 105 105 120 160 160 160 160 160 110 110 130 130 160 150 50 Average Speed 142 | 147 160 160 160 160 160 154 115 115 112 105 105 82 100 120 120 120 119 118 165 160 166 160 162 160 138 128 130 157 160 158 151 Slowest Speed 270 | 160 160 160 160 160 160 260 115 115 140 105 105 260 200 120 120 120 120 120 260 160 270 160 260 160 160 160 130 166 163 160 200 Overloaded Moves . | . . . . . . . . . . . . . . . . . . . . . . . . . . . . . . . . Propulsion Burnouts . | . . . . . . . . . . . . . . . . . . . . . . . . . . . . . . . . Robots Hopped . | . . . . . . . . . . . . . . . . . . . . . . . . . . . . . . . . Cave-ins Triggered 5 | . . . . . . . . . . . . . . . . . . . . . . . . . . 1 . . 4 . . Teleports 2 | . . . . . . . . . . . . . . . . . . . 1 . . . . . . . . . . 1 . Spacefolds 12 | . . . . . . . . . . . . . . . . . . . . . . . . . . . . . 12 . . Microwarps 8 | . . . . . . . . . . . . . . . . . . . . . . . . . . . . . 8 . . Exploration Rate (%) 47 | 4 49 63 34 27 8 65 75 2 92 38 69 57 5 57 70 61 75 4 92 6 96 83 89 23 18 56 7 81 54 31 25 Regions Visited 31 Branch Regions 20 Pre-discovered Areas 13 | . 1 2 1 . . 1 1 . . . 1 1 . 1 . 3 1 . . . . . . . . . . . . . . Known Exits Taken 19 | . . . . 1 . . . 1 1 1 1 1 1 . . . 1 . . 1 1 1 1 1 1 1 1 1 1 1 . Unknown Exits Taken 10 | 1 1 1 1 . 1 1 1 . . . . . . 1 1 1 . . . . . . . . . . . . . . . Scrap Searched 14 | . . 1 . 1 . . . . 1 . . 3 . 3 3 . 2 . . . . . . . . . . . . . . Spaces Dug 135 | . 11 1 . . . . . . . . . 18 . . . . . . 2 1 . . . 4 1 5 4 17 28 33 10 Terrain Destroyed 479 | . 14 2 . . . . . . 46 . . 36 39 1 . . 1 1 6 1 30 13 15 42 14 15 4 20 52 87 40 Melee 59 | . . . . . . . . . . . . . . . . . . . . . . . . . . 3 4 14 28 6 4 Projectile 309 | . 14 2 . . . . . . . . . . 10 1 . . 1 1 6 1 30 13 15 42 14 12 . 6 24 81 36 AOE 111 | . . . . . . . . . 46 . . 36 29 . . . . . . . . . . . . . . . . . . Terrain Rammed . | . . . . . . . . . . . . . . . . . . . . . . . . . . . . . . . . Walls Destroyed . | . . . . . . . . . . . . . . . . . . . . . . . . . . . . . . . . Machines Disabled . | . . . . . . . . . . . . . . . . . . . . . . . . . . . . . . . . Actions | -11 -10 -10 -9 -9 -8 -8 -8 -6 -6 -6 -6 -5 -5 -5 -5 -5 -4 -4 -4 -4 -4 -4 -4 -4 -3 -3 -2 -2 -2 -1 -1 --------- Run | Scr Mat Min Mat Min Mat Sto Rec Fac Low Low Dat Pro Fac Upp Upp Zhi Pro Fac Was Fac Ext Cet Arc Hub Res Qua Res Tes Sec Acc Com Total 20412 | 83 430 1101 534 109 27 1427 188 36 1636 242 76 394 773 325 472 165 493 204 1354 216 2043 251 367 406 623 417 135 1741 928 1623 1593 Wait 4587 | . 131 608 70 . . 317 . 9 257 . . 16 124 7 . . 3 21 955 2 528 41 100 62 221 44 6 280 182 297 306 Move 13237 | 66 248 423 373 99 25 927 185 23 1304 233 76 340 510 305 468 151 476 147 343 197 1256 153 210 294 323 326 112 1227 586 999 832 Hop . | . . . . . . . . . . . . . . . . . . . . . . . . . . . . . . . . Pick Up 184 | 5 3 17 13 1 . 14 . . 14 1 . 3 22 1 1 2 1 4 2 3 10 3 . 2 4 6 1 10 15 13 13 Fast Attach 340 | 7 2 1 5 1 . 37 . . 3 1 . 3 22 3 1 5 2 7 16 2 26 10 17 6 18 7 2 17 15 47 57 Attach 186 | . . 2 6 . 2 7 . 4 8 1 . 8 8 1 . . . 4 2 2 14 2 1 3 5 2 2 24 14 25 39 Detach 145 | . 1 1 1 . . 8 . . 2 1 . 1 9 2 . . . 1 5 1 9 2 4 1 6 7 2 19 7 19 36 Swap 105 | . 12 12 7 . . 8 1 . 5 2 . 5 11 . . 1 . 2 3 2 4 1 . 1 3 4 2 7 . 4 8 Drop 332 | . 1 12 15 3 . 38 . . 6 2 . 6 28 2 2 6 3 4 16 5 12 10 16 7 10 4 2 20 13 44 45 Fire 757 | 5 24 22 41 2 . 64 2 . 37 . . 12 33 4 . . 8 14 12 1 88 29 19 30 23 10 . 19 8 111 139 Melee 405 | . . . . . . 3 . . . 1 . . 6 . . . . . . . . . . . . 6 6 118 86 64 115 Ram 3 | . . . . . . . . . . . . . . . . . . . . . . . . . . . . . . . 3 Kick . | . . . . . . . . . . . . . . . . . . . . . . . . . . . . . . . . Crush 25 | . 8 3 3 3 . 4 . . . . . . . . . . . . . 1 1 . . . 2 . . . . . . Escape Stasis 13 | . . . . . . . . . . . . . . . . . . . . . 2 . . . 8 1 . . 2 . . Rewire 93 | . . . . . . . . . . . . . . . . . . . . . 93 . . . . . . . . . . Trap . | . . . . . . . . . . . . . . . . . . . . . . . . . . . . . . . . Miscellaneous . | . . . . . . . . . . . . . . . . . . . . . . . . . . . . . . . . Route ------- -11/Scrapyard -10/Materials (discovered 3 exits: *Mat / *Min x2) -10/Mines (discovered 2 exits: *Mat x2) -9/Materials -9/Mines (discovered 3 exits: *Mat x2 / [*Zio]) -8/Materials -8/Storage -8/Recycling -6/Factory -6/Lower Caves -6/Lower Caves -6/Data Miner -5/Proximity Caves -5/Factory (discovered 4 exits: Fac x2 / *Upp x2) -5/Upper Caves -5/Upper Caves -5/Zhirov -4/Proximity Caves -4/Factory (discovered 2 exits: Res x2) -4/Waste -4/Factory (discovered 5 exits: Upp x2 / *Ext x2 / Arm) -4/Extension (discovered 2 exits: *Res / *Cet) -4/Cetus (discovered 2 exits: *Res / *Arc) -4/Archives (discovered 3 exits: *Res / *Hub x2) -4/Hub_04(d) (discovered 2 exits: *Res x2) -3/Research (discovered 5 exits: *Res x3 / *Qua x2) -3/Quarantine -2/Research (discovered 2 exits: *Tes x2) -2/Testing (discovered 2 exits: Acc / *Sec) -2/Section 7 -1/Access -1/Command History --------- Turn | Location | Event 2 | -11/Scrapyard | Discovered new exit (range 16) 129 | -11/Scrapyard | Entered Materials 169 | -10/Materials | Central database locked down 308 | -10/Materials | Build established: Mutant 490 | -10/Materials | Discovered new exit (range 13) 561 | -10/Materials | Discovered new exit (range 14) 767 | -10/Materials | Discovered new exit (range 6) 781 | -10/Materials | Entered Mines 831 | -10/Mines | Discovered new exit (range 10) 833 | -10/Mines | Met a Derelict bent on vengeance 956 | -10/Mines | Learned location of Zion (-7) 996 | -10/Mines | Excavation squad dispatched 996 | -10/Mines | A large section of the Mines collapsed 1246 | -10/Mines | Excavation squad dispatched 1602 | -10/Mines | Assisted by bots powering up and referring to "LRC-V3" 1655 | -10/Mines | Deemed a non-threat by the Exiles lab entrance 1730 | -10/Mines | Discovered new exit (range 14) 1750 | -10/Mines | Met a Derelict who couldn't figure out how to use a Trap Extractor 1768 | -10/Mines | Learned location of Storage (-8) 2184 | -10/Mines | Entered Materials 2184 | -9/Materials | Accompanied by 3 allies 2184 | -9/Materials | Evolved 2 slots: Weapon x2 2472 | -9/Materials | Build established: Tank 2763 | -9/Materials | Discovered new exit (range 14) 2897 | -9/Materials | Build established: Gunner 3034 | -9/Materials | Entered Mines 3093 | -9/Mines | A Derelict revealed a hidden shortcut to a safe place 3094 | -9/Mines | Learned Materials emergency access door positions 3187 | -9/Mines | Discovered new exit (range 5) 3196 | -9/Mines | Identified exit to Materials 3209 | -9/Mines | Entered Materials 3209 | -8/Materials | Evolved 2 slots: Utility x2 3225 | -8/Materials | Discovered new exit (range 15) 3251 | -8/Materials | Entered Storage 3300 | -8/Storage | Build established: Tank 4321 | -8/Storage | Repaired Imp. Treads 4654 | -8/Storage | Repaired Imp. Treads 4951 | -8/Storage | Build established: Hacker-Gunner 5232 | -8/Storage | Used back door to open Recycling access 5232 | -8/Storage | Discovered new exit (range 5) 5343 | -8/Storage | Entered Recycling 5389 | -8/Recycling | Spotter reported a threat 5395 | -8/Recycling | Spotter reported a threat 5395 | -8/Recycling | Spotter reported a threat 5404 | -8/Recycling | Spotter reported a threat 5411 | -8/Recycling | Spotter reported a threat 5412 | -8/Recycling | Spotter reported a threat 5414 | -8/Recycling | Spotter reported a threat 5436 | -8/Recycling | Discovered new exit (range 71) 5447 | -8/Recycling | Spotter reported a threat 5448 | -8/Recycling | Spotter reported a threat 5457 | -8/Recycling | Spotter reported a threat 5461 | -8/Recycling | Spotter reported a threat 5464 | -8/Recycling | Spotter reported a threat 5467 | -8/Recycling | Spotter reported a threat 5493 | -8/Recycling | Spotter reported a threat 5500 | -8/Recycling | Spotter reported a threat 5514 | -8/Recycling | Spotter reported a threat 5520 | -8/Recycling | Spotter reported a threat 5532 | -8/Recycling | Spotter reported a threat 5545 | -8/Recycling | Spotter reported a threat 5565 | -8/Recycling | Entered Factory 5565 | -6/Factory | Evolved 4 slots: Utility x4 5579 | -6/Factory | Discovered new exit (range 11) 5593 | -6/Factory | Identified exit to Lower Caves 5605 | -6/Factory | Entered Lower Caves 5881 | -6/Lower Caves | Spotted B-75 Beast 5915 | -6/Lower Caves | Build established: Hacker-Tank 6538 | -6/Lower Caves | Encountered a Warlord checkpoint 6545 | -6/Lower Caves | Learned 4 Factory zone layouts 6673 | -6/Lower Caves | Destroyed B-75 Beast 7246 | -6/Lower Caves | Discovered new exit (range 6) 7252 | -6/Lower Caves | Identified exit to Lower Caves 7491 | -6/Lower Caves | Entered another Lower Caves area 7502 | -6/Lower Caves | Encountered a Warlord checkpoint 7622 | -6/Lower Caves | Build established: Hacker-Gunner 7655 | -6/Lower Caves | Discovered new exit (range 7) 7661 | -6/Lower Caves | Identified exit to Data Miner 7745 | -6/Lower Caves | Entered Data Miner 7745 | -6/Data Miner | Discovered new exit (range 6) 7765 | -6/Data Miner | Met Data Miner 7786 | -6/Data Miner | Learned location of Section 7 (-2) 7786 | -6/Data Miner | Acquired the access code to Warlord's prototype stash 7801 | -6/Data Miner | Received God Mode back door access code from Data Miner 7824 | -6/Data Miner | Identified exit to Proximity Caves 7825 | -6/Data Miner | Entered Proximity Caves 7988 | -5/Proximity Caves | Escorted by Enhanced Grunt 8127 | -5/Proximity Caves | Lost 11 parts (1p1n2u7w) 8174 | -5/Proximity Caves | Discovered new exit (range 14) 8179 | -5/Proximity Caves | Identified exit to Factory 8186 | -5/Proximity Caves | Entered Factory 8186 | -5/Factory | Evolved 2 slots: Utility x2 8187 | -5/Factory | Identified exit to Factory 8220 | -5/Factory | Discovered new exit (range 3) 8221 | -5/Factory | Identified exit to Upper Caves 8585 | -5/Factory | Fabricated Combat Drone Bay (x1) 8673 | -5/Factory | Local fabrication network quarantined 9012 | -5/Factory | Entered Upper Caves 9054 | -5/Upper Caves | Learned location of Armory (-4) 9058 | -5/Upper Caves | Build established: Scavenger-Skirmisher 9309 | -5/Upper Caves | Learned 8 Factory zone layouts 9356 | -5/Upper Caves | Discovered new exit (range 15) 9407 | -5/Upper Caves | Entered another Upper Caves area 9407 | -5/Upper Caves | Accompanied by 2 allies 9606 | -5/Upper Caves | Learned Factory security intel 9627 | -5/Upper Caves | Build established: Scavenger-Gunner 9645 | -5/Upper Caves | Encountered a Warlord checkpoint 9967 | -5/Upper Caves | Discovered new exit (range 4) 9973 | -5/Upper Caves | Entered Zhirov 9973 | -5/Zhirov | Accompanied by 2 allies 9973 | -5/Zhirov | Discovered new exit (range 3) 9995 | -5/Zhirov | Met Zhirov 10022 | -5/Zhirov | Found Alien Artifact 10022 | -5/Zhirov | Identified Integrated Dissipator 10022 | -5/Zhirov | Installed Integrated Dissipator, increased core heat dissipation (+20) 10077 | -5/Zhirov | Found Alien Artifact 10124 | -5/Zhirov | Learned location of Quarantine (-3) 10124 | -5/Zhirov | Learned location of Command (-1) 10135 | -5/Zhirov | Zhirov requested help retrieving the SGEMP Prototype 10169 | -5/Zhirov | Entered Proximity Caves 10169 | -4/Proximity Caves | Accompanied by 2 allies 10323 | -4/Proximity Caves | Build established: Scavenger-Tank 10640 | -4/Proximity Caves | Discovered exit to Factory (range 9) 10774 | -4/Proximity Caves | Entered Factory 10774 | -4/Factory | Accompanied by 2 allies 10774 | -4/Factory | Evolved 2 slots: Utility x2 10775 | -4/Factory | Identified exit to Research 10914 | -4/Factory | Lost 3 parts (2u1w) 10924 | -4/Factory | Spotted B-86 Titan 10974 | -4/Factory | Lost 3 parts (1p1u1w) 10994 | -4/Factory | Found Corrupted Prototype Device 10994 | -4/Factory | Identified Active Sensor Suite 11038 | -4/Factory | Sucked down chute 11038 | -4/Factory | Entered Waste 11048 | -4/Waste | Spotted C-40 Crusher 11053 | -4/Waste | Spotted C-40 Crusher 11249 | -4/Waste | Build established: Scavenger-Skirmisher 11993 | -4/Waste | Identified Transdimensional Reconstructor 11993 | -4/Waste | Warped through subspace 12014 | -4/Waste | Spotted C-40 Crusher 12018 | -4/Waste | Spotted C-40 Crusher 12023 | -4/Waste | Spotted C-40 Crusher 12025 | -4/Waste | Warlord forces began an assault 12031 | -4/Waste | Allies destroyed C-40 Crusher 12037 | -4/Waste | Allies destroyed C-40 Crusher 12038 | -4/Waste | Allies destroyed C-40 Crusher 12044 | -4/Waste | Allies destroyed C-40 Crusher 12069 | -4/Waste | Found Damper Plating 12375 | -4/Waste | Spotted C-40 Crusher 12384 | -4/Waste | Allies destroyed C-40 Crusher 12490 | -4/Waste | Build established: Scavenger-Tank 12586 | -4/Waste | Discovered new exit (range 13) 12629 | -4/Waste | Identified exit to Factory 12648 | -4/Waste | Entered Factory 12648 | -4/Factory | Accompanied by 13 allies 12685 | -4/Factory | Identified exit to Upper Caves 12685 | -4/Factory | Identified exit to Extension 12685 | -4/Factory | Identified exit to Armory 12912 | -4/Factory | Found Active Sensor Suite 12983 | -4/Factory | Entered Extension 12983 | -4/Extension | Accompanied by 12 allies 13501 | -4/Extension | Repaired Imp. Heavy Treads 13626 | -4/Extension | Build established: Hacker-Skirmisher 14012 | -4/Extension | Spotted B-86 Titan 14041 | -4/Extension | Spotted B-86 Titan 14053 | -4/Extension | Destroyed B-86 Titan 14167 | -4/Extension | Lost 4 parts (3u1w) 14228 | -4/Extension | Disrupted transfer network 14541 | -4/Extension | Build established: Hacker-Gunner 14793 | -4/Extension | Destroyed B-86 Titan 14821 | -4/Extension | Lost 4 parts (1p1u2w) 14928 | -4/Extension | Rescued a captive Derelict 14929 | -4/Extension | Rescued a captive Derelict 15090 | -4/Extension | Discovered exit to Research (range 20) 15090 | -4/Extension | Discovered new exit (range 20) 15114 | -4/Extension | Build established: Scavenger-Skirmisher 15129 | -4/Extension | Identified exit to Cetus 15431 | -4/Extension | Rescued a captive Derelict 15507 | -4/Extension | Incoming investigation squad redirected 15544 | -4/Extension | Core integrity fell below 50% 15742 | -4/Extension | Rescued a captive Derelict 15761 | -4/Extension | Rescued A7 16053 | -4/Extension | Entered Cetus 16053 | -4/Cetus | Accompanied by 8 allies (A7) 16058 | -4/Cetus | Acquired a Cetus Manufacturing Module code from A7 16069 | -4/Cetus | Spotted Cetus Guard 16069 | -4/Cetus | Spotted Cetus Guard 16074 | -4/Cetus | Spotted Cetus Guard 16079 | -4/Cetus | Spotted Cetus Guard 16092 | -4/Cetus | Destroyed Cetus Guard 16095 | -4/Cetus | Destroyed Cetus Guard 16098 | -4/Cetus | Allies destroyed Cetus Guard 16100 | -4/Cetus | Allies destroyed Cetus Guard 16223 | -4/Cetus | Started Cetus Manufacturing Module 16234 | -4/Cetus | Discovered exit to Research (range 51) 16238 | -4/Cetus | Discovered new exit (range 20) 16248 | -4/Cetus | Manufactured an Enhanced Grunt 16273 | -4/Cetus | Manufactured an Enhanced Grunt 16298 | -4/Cetus | Manufactured an Enhanced Grunt 16322 | -4/Cetus | Escorted A7 to Cetus Mainframe 16323 | -4/Cetus | Manufactured an Enhanced Grunt 16348 | -4/Cetus | Manufactured an Enhanced Grunt 16367 | -4/Cetus | Spotted Cetus Guard 16367 | -4/Cetus | Spotted Cetus Guard 16375 | -4/Cetus | Spotted Cetus Guard 16377 | -4/Cetus | Destroyed Cetus Guard 16377 | -4/Cetus | Spotted Cetus Guard 16395 | -4/Cetus | Allies destroyed Cetus Guard 16396 | -4/Cetus | Destroyed Cetus Guard 16411 | -4/Cetus | Destroyed Cetus Guard 16412 | -4/Cetus | Build established: Scavenger-Tank 16455 | -4/Cetus | Identified exit to Archives 16461 | -4/Cetus | Entered Archives 16461 | -4/Archives | Accompanied by 6 allies (A7) 16466 | -4/Archives | Received a hacking code to weaken MAIN.C 16610 | -4/Archives | Discovered new exit (range 20) 16642 | -4/Archives | Discovered exit to Research (range 15) 16691 | -4/Archives | Discovered new exit (range 19) 16986 | -4/Archives | Identified exit to Hub_04(d) 17003 | -4/Archives | Entered Hub_04(d) 17003 | -4/Hub_04(d) | Discovered exit to Research (range 10) 17137 | -4/Hub_04(d) | Destroyed 7 combat bots 17165 | -4/Hub_04(d) | Discovered exit to Research (range 16) 17308 | -4/Hub_04(d) | Garrison activated, responded to threat 17601 | -4/Hub_04(d) | Network Hub disabled 17601 | -4/Hub_04(d) | Network Hub disabled 17650 | -4/Hub_04(d) | Spotted Lightning 17650 | -4/Hub_04(d) | Spotted Lightning 17655 | -4/Hub_04(d) | System corruption reached 10% 17656 | -4/Hub_04(d) | Entered Research 17656 | -3/Research | Accompanied by 1 ally 17656 | -3/Research | Evolved 2 slots: Propulsion x2 17686 | -3/Research | Lost 3 parts (1p2u) 17856 | -3/Research | Revision forces began assault on 0b10 17870 | -3/Research | Repaired Broken Rnf. Fission Core 17890 | -3/Research | Met up with Revision 17++ 17899 | -3/Research | Repaired Hvy. Mass Driver 17954 | -3/Research | Repaired Centrium Medium Armor Plating 18008 | -3/Research | Repaired Imp. KE Penetrator 18061 | -3/Research | Identified exit to Quarantine 18204 | -3/Research | Identified exit to Research 18321 | -3/Research | Fabricated Exp. Transmission Jammer (x1) 18356 | -3/Research | Research terminal network offline 18370 | -3/Research | Spotted B-90 Cyclops 18465 | -3/Research | Entered Quarantine 18477 | -3/Quarantine | Build established: Scavenger-Skirmisher 18654 | -3/Quarantine | Found Alien Slashing Weapon 18654 | -3/Quarantine | Identified Sigix Broadsword 18714 | -3/Quarantine | Repaired Centrium Heavy Treads 18881 | -3/Quarantine | Found Alien Artifact 18881 | -3/Quarantine | Identified Core Reset Matrix 18881 | -3/Quarantine | Used Core Reset Matrix 18885 | -3/Quarantine | Detected hypermatrix surge 18885 | -3/Quarantine | Sensed 13 artifacts in vicinity 18913 | -3/Quarantine | Central database locked down 18961 | -3/Quarantine | Crushed by falling debris 18986 | -3/Quarantine | Found Subatomic Replicator 18995 | -3/Quarantine | Discovered exit to Research (range 3) 19003 | -3/Quarantine | Entered Research 19003 | -2/Research | Evolved 2 slots: Propulsion x2 19016 | -2/Research | Used Subatomic Replicator to replicate Sigix Broadsword 19049 | -2/Research | Identified exit to Testing 19080 | -2/Research | Build established: Hacker-Mutant 19185 | -2/Research | Entered Testing 19982 | -2/Testing | System corruption reached 10% 20463 | -2/Testing | Repaired Centrium Medium Armor Plating 20514 | -2/Testing | Fabricated Enh. Armored Heavy Treads? 20620 | -2/Testing | Build established: Wizard-Mutant 20833 | -2/Testing | Central database locked down 20884 | -2/Testing | Local fabrication network quarantined 21232 | -2/Testing | Found Prototype Device 21232 | -2/Testing | Identified Exp. Thermal Shield 21595 | -2/Testing | Identified exit to Access 21654 | -2/Testing | Found Prototype Energy Gun 21717 | -2/Testing | Identified Warp Gun 21763 | -2/Testing | System corruption reached 30% 21785 | -2/Testing | Spotted Fortress 21896 | -2/Testing | Discovered new exit (range 6) 21903 | -2/Testing | Identified exit to Section 7 21906 | -2/Testing | Entered Section 7 21907 | -2/Section 7 | Sensed 21 artifacts in vicinity 21926 | -2/Section 7 | Found Microwarp Drive 21992 | -2/Section 7 | Found Integrated Dissipator 21992 | -2/Section 7 | Installed Integrated Dissipator, increased core heat dissipation (+20) 22072 | -2/Section 7 | Found Spacefold Activator 22110 | -2/Section 7 | Spotted B-90 Cyclops 22119 | -2/Section 7 | Found Integrated Dissipator 22221 | -2/Section 7 | Found Unknown Piercing Weapon 22221 | -2/Section 7 | Identified Enh. Force Lance 22224 | -2/Section 7 | Found Enh. Force Lance 22254 | -2/Section 7 | Repaired Broken Centrium Heavy Treads 22512 | -2/Section 7 | Found Integrated Reactor 22512 | -2/Section 7 | Installed Integrated Reactor, increased core energy generation (+10) 22524 | -2/Section 7 | Found Integrated Reactor 22524 | -2/Section 7 | Installed Integrated Reactor, increased core energy generation (+10) 22527 | -2/Section 7 | Found Integrated Reactor 22527 | -2/Section 7 | Installed Integrated Reactor, increased core energy generation (+10) 22598 | -2/Section 7 | Found LRC Boosters 22598 | -2/Section 7 | Installed LRC Boosters, increased mass support (+10) 22653 | -2/Section 7 | Found Core Reset Matrix 22806 | -2/Section 7 | Build established: Alien-Mutant 22877 | -2/Section 7 | Spotted B-99 Colossus 22973 | -2/Section 7 | Found Hpw. Transdimensional Reconstructor 22977 | -2/Section 7 | Found Transdimensional Reconstructor 23008 | -2/Section 7 | Found Transdimensional Reconstructor 23012 | -2/Section 7 | Found Transdimensional Reconstructor 23043 | -2/Section 7 | Found Matter Drive 23277 | -2/Section 7 | Crushed by falling debris 23300 | -2/Section 7 | Crushed by falling debris 23311 | -2/Section 7 | Spotted S7 Guard 23322 | -2/Section 7 | Found Core Regenerator 23346 | -2/Section 7 | Crushed by falling debris 23355 | -2/Section 7 | Spotted S7 Guard 23356 | -2/Section 7 | Crushed by falling debris 23359 | -2/Section 7 | Core integrity fell below 50% 23359 | -2/Section 7 | Found Core Physics Calibrator 23367 | -2/Section 7 | Discovered exit to Access (range 5) 23373 | -2/Section 7 | Entered Access 23373 | -1/Access | Evolved 2 slots: Power x1, Weapon x1 23374 | -1/Access | Sensed 1 artifact in vicinity 23376 | -1/Access | Installed Integrated Dissipator, increased core heat dissipation (+20) 23546 | -1/Access | Fabricated Enh. Armored Heavy Treads (x1) 23673 | -1/Access | Warped through subspace 23825 | -1/Access | Build established: Alien-Tank 24241 | -1/Access | System corruption reached 10% 25017 | -1/Access | Identified exit to Command 25046 | -1/Access | Incoming investigation squad redirected 25064 | -1/Access | Used Core Regenerator, restored core integrity (+285) 25898 | -1/Access | First assault squad dispatched 25924 | -1/Access | Incoming assault squad redirected 25939 | -1/Access | Entered Command 26397 | -1/Command | Build established: Alien-Mutant 26411 | -1/Command | Identified exit to Surface 26439 | -1/Command | First assault squad dispatched 26454 | -1/Command | Incoming assault squad redirected 27103 | -1/Command | Lost 5 parts (5u) 27152 | -1/Command | System corruption reached 30% 27599 | -1/Command | Spotted M Guard 27642 | -1/Command | Spotted M Guard 27642 | -1/Command | Spotted Combat Programmer 27643 | -1/Command | Spotted Combat Programmer 27661 | -1/Command | Destroyed Combat Programmer 27670 | -1/Command | Destroyed Combat Programmer 27690 | -1/Command | Lost 3 parts (1p1n1u) 27706 | -1/Command | Destroyed M Guard 27711 | -1/Command | Destroyed M Guard 27711 | -1/Command | All MAIN.C guards destroyed 27741 | -1/Command | Found Corrupted Prototype Reactor 27741 | -1/Command | Identified Zero-point Reactor 27749 | -1/Command | Lost 3 parts (2n1w) 27749 | -1/Command | Found Corrupted Prototype Protection 27749 | -1/Command | Identified Hvy. Regenerative Plating 27786 | -1/Command | Found Corrupted Prototype Launcher 28030 | -1/Command | Build established: Scavenger-Gunner 28068 | -1/Command | Met MAIN.C 28075 | -1/Command | 0b10 Conduit disabled 28310 | -1/Command | Destroyed MAIN.C Shell 28313 | -1/Command | MAIN.C activated Command garrisons 28362 | -1/Command | Identified Hellfire Missile Launcher 28372 | -1/Command | Core integrity fell below 50% 28378 | -1/Command | Emitted hypermatrix ping 28381 | -1/Command | Core integrity fell below 20% 28383 | -1/Command | Assembled emerged from beneath the floor 28390 | -1/Command | Self-destructed Last Messages --------------- 28378_ Acquired 5 matter. 28380_ Knocked back. 28381_ DO%CZOPBG4 SZA 0QQU7